fUST/lending_fUST_20250606
["ID","MTS","AMOUNT","RATE_DAILY","PERIOD"]
[364610238,1749160235397,-455.11,0.00024255,2]
[364610239,1749160235407,-440.0,0.00024255,2]
[364610240,1749160235417,-241.25,0.00024255,2]
[364610241,1749160235426,-440.0,0.00024255,2]
[364610242,1749160235439,-440.0,0.00024255,2]
[364610243,1749160235449,-440.0,0.00024255,2]
[364610244,1749160235458,-894.27,0.00024255,2]
[364610245,1749160235468,-440.0,0.00024255,2]
[364610246,1749160235478,-440.0,0.00024255,2]
[364610247,1749160235488,-157.78072945,0.00024279,2]
[364610248,1749160235498,-435.75596459,0.00024279,10]
[364610249,1749160235507,-1456.318,0.00024284,2]
[364610250,1749160235517,-405.0,0.00024284,2]
[364610251,1749160235526,-582.25277355,0.00024292,2]
[364610252,1749160235536,-440.0,0.00024292,2]
[364610253,1749160235546,-426.50166752,0.00024292,2]
[364610254,1749160235556,-440.0,0.00024292,2]
[364610255,1749160235566,-440.0,0.00024292,2]
[364610256,1749160235575,-440.0,0.00024292,2]
[364610257,1749160235587,-440.0,0.00024292,2]
[364610258,1749160235597,-440.0,0.00024292,2]
[364610259,1749160235606,-440.0,0.00024292,2]
[364610260,1749160235616,-440.0,0.00024292,2]
[364610261,1749160235626,-440.0,0.00024292,2]
[364610262,1749160235635,-440.0,0.00024292,2]
[364610263,1749160235644,-440.0,0.00024292,2]
[364610264,1749160235654,-440.0,0.00024292,2]
[364610265,1749160235664,-440.0,0.00024292,2]
[364610266,1749160235674,-440.0,0.00024292,2]
[364610267,1749160235687,-158.8334,0.00024292,7]
[364610268,1749160235696,-440.0,0.00024292,2]
[364610269,1749160235706,-440.0,0.00024292,2]
[364610270,1749160235715,-440.0,0.00024292,2]
[364610271,1749160235724,-240.8755188,0.00024292,2]
[364610305,1749160238611,-500.0,0.0002423,2]
[364610308,1749160238621,-199.1244812,0.00024292,2]
[364610309,1749160238631,-495.03,0.00024292,2]
[364610311,1749160238640,-389.280026,0.00024292,2]
[364610314,1749160238652,-50.719974,0.00024292,2]
[364610316,1749160238662,-672.95,0.00024292,2]
[364610318,1749160238671,-440.0,0.00024292,2]
[364610320,1749160238680,-12.91718012,0.00024292,2]
[364610322,1749160238694,-427.08281988,0.00024292,2]
[364610324,1749160238704,-440.0,0.00024299,2]
[364610326,1749160238713,-87.12261848,0.00024299,2]
[364610328,1749160238725,-352.87738152,0.00024299,2]
[364610330,1749160238735,-440.0,0.00024299,2]
[364610332,1749160238745,-440.0,0.00024299,2]
[364610334,1749160238754,-440.0,0.00024299,2]
[364610336,1749160238764,-325.61441544,0.000243,2]
[364610338,1749160238776,-1580.06659583,0.000243,2]
[364610340,1749160238787,-94.31898873,0.000243,2]
[364610342,1749160238798,-2000.0,0.000243,2]
[364610344,1749160238810,-2000.0,0.000243,2]
[364610346,1749160238820,-151.0,0.000243,8]
[364610348,1749160238830,-292.8,0.000243,2]
[364610351,1749160238839,-153.0,0.00024301,2]
[364610353,1749160238850,-153.0,0.00024301,2]
[364610355,1749160238859,-364.646625,0.00024301,2]
[364610356,1749160238868,-153.0,0.00024301,2]
[364610358,1749160238879,-153.0,0.00024301,2]
[364610360,1749160238888,-364.646625,0.00024301,2]
[364610362,1749160238897,-153.0,0.00024301,2]
[364610364,1749160238906,-153.0,0.00024301,2]
[364610366,1749160238916,-364.646625,0.00024301,2]
[364610368,1749160238927,-364.646625,0.00024301,2]
[364610370,1749160238937,-364.646625,0.00024301,2]
[364610372,1749160238946,-518.44789627,0.00024301,2]
[364610374,1749160238958,-185.33708043,0.00024301,2]
[364610376,1749160238967,-158.5442955,0.00024301,2]
[364610378,1749160238977,-572.6068135,0.00024301,2]
[364610380,1749160238988,-1000.0,0.00024303,10]
[364610382,1749160239000,-499.43728057,0.00024303,8]
[364610385,1749160239011,-500.56271943,0.00024303,8]
[364610387,1749160239020,-1000.0,0.00024303,6]
[364610389,1749160239031,-1000.0,0.00024303,4]
[364610391,1749160239040,-1000.0,0.00024303,2]
[364610393,1749160239049,-160.0,0.00024306,2]
[364610395,1749160239059,-158.8334,0.00024306,7]
[364610397,1749160239070,-151.0,0.00024307,7]
[364610399,1749160239080,-151.0,0.00024307,7]
[364610401,1749160239089,-151.0,0.00024307,7]
[364610403,1749160239099,-151.0,0.00024307,7]
[364610404,1749160239108,-151.0,0.00024307,7]
[364610407,1749160239117,-151.0,0.00024307,7]
[364610409,1749160239127,-151.0,0.00024307,7]
[364610411,1749160239136,-151.0,0.00024307,7]
[364610413,1749160239146,-151.0,0.00024307,7]
[364610414,1749160239155,-151.0,0.00024307,7]
[364610416,1749160239164,-151.0,0.00024307,7]
[364610419,1749160239173,-151.0,0.00024307,7]
[364610421,1749160239182,-151.0,0.00024307,7]
[364610422,1749160239193,-151.0,0.00024307,7]
[364610425,1749160239202,-243.93163,0.00024307,7]
[364610427,1749160239212,-151.0,0.00024307,7]
[364610429,1749160239222,-151.0,0.00024307,7]
[364610430,1749160239231,-151.0,0.00024307,7]
[364610432,1749160239241,-151.0,0.00024307,7]
[364610435,1749160239251,-151.0,0.00024307,7]
[364610437,1749160239261,-151.0,0.00024307,7]
[364610439,1749160239271,-212.988123,0.00024307,7]
[364610441,1749160239280,-440.0,0.00024307,2]
[364610443,1749160239290,-212.94059491,0.00024307,7]
[364610444,1749160239299,-423.7637613,0.00024307,7]
[364610446,1749160239308,-1040.16127658,0.00024307,30]
[364610449,1749160239320,-11634.95453519,0.00024307,30]
[364610451,1749160239330,-315.01552021,0.00024307,30]
[364610452,1749160239339,-151.0,0.00024308,7]
[364610454,1749160239349,-151.0,0.00024308,7]
[364610456,1749160239358,-151.0,0.00024308,7]
[364610458,1749160239367,-151.0,0.00024308,7]
[364610460,1749160239376,-151.0,0.00024308,7]
[364610462,1749160239386,-171.25427,0.00024308,7]
[364610464,1749160239395,-151.0,0.00024308,7]
[364610466,1749160239404,-152.866879,0.00024308,7]
[364610468,1749160239416,-151.0,0.00024308,7]
[364610470,1749160239426,-259.332202,0.00024308,7]
[364610472,1749160239437,-151.0,0.00024308,7]
[364610474,1749160239447,-151.0,0.00024308,7]
[364610475,1749160239456,-151.0,0.00024308,7]
[364610477,1749160239466,-293.934596,0.00024308,7]
[364610479,1749160239476,-151.0,0.00024308,7]
[364610481,1749160239486,-211.269124,0.00024308,7]
[364610483,1749160239496,-151.0,0.00024308,7]
[364610485,1749160239506,-151.0,0.00024308,7]
[364610487,1749160239515,-151.0,0.00024308,7]
[364610489,1749160239525,-151.0,0.00024308,7]
[364610491,1749160239535,-163.279386,0.00024308,7]
[364610493,1749160239544,-151.0,0.00024308,7]
[364610495,1749160239554,-151.0,0.00024308,7]
[364610497,1749160239563,-151.0,0.00024308,7]
[364610499,1749160239574,-157.834877,0.00024308,7]
[364610501,1749160239584,-151.0,0.00024308,7]
[364610503,1749160239593,-255.18757,0.00024308,7]
[364610504,1749160239603,-151.0,0.00024308,7]
[364610505,1749160239613,-270.943144,0.00024308,7]
[364610506,1749160239623,-151.0,0.00024308,7]
[364610507,1749160239632,-151.0,0.00024308,7]
[364610508,1749160239641,-151.0,0.00024308,7]
[364610509,1749160239651,-151.0,0.00024308,7]
[364610510,1749160239662,-200.0,0.00024308,7]
[364610511,1749160239672,-151.0,0.00024308,7]
[364610512,1749160239681,-151.0,0.00024308,7]
[364610513,1749160239691,-151.0,0.00024308,7]
[364610514,1749160239701,-228.338956,0.00024308,7]
[364610515,1749160239711,-151.0,0.00024309,7]
[364610516,1749160239720,-151.0,0.00024309,7]
[364610517,1749160239730,-151.0,0.00024309,7]
[364610518,1749160239740,-151.0,0.00024309,7]
[364610519,1749160239752,-151.0,0.00024309,7]
[364610520,1749160239762,-159.80008,0.00024309,7]
[364610521,1749160239771,-151.0,0.00024309,7]
[364610522,1749160239781,-151.0,0.00024309,7]
[364610523,1749160239791,-151.0,0.00024309,7]
[364610524,1749160239800,-151.0,0.00024309,7]
[364610525,1749160239809,-202.205927,0.00024309,7]
[364610526,1749160239819,-151.0,0.00024309,7]
[364610527,1749160239829,-151.0,0.00024309,7]
[364610528,1749160239838,-260.344866,0.00024309,7]
[364610529,1749160239848,-151.0,0.00024309,7]
[364610530,1749160239858,-198.0,0.00024309,7]
[364610531,1749160239868,-685.942006,0.00024309,7]
[364610532,1749160239878,-685.942006,0.00024309,7]
[364610533,1749160239887,-685.942006,0.00024309,7]
[364610534,1749160239897,-685.942006,0.00024309,7]
[364610535,1749160239906,-685.942006,0.00024309,7]
[364610536,1749160239917,-685.942006,0.00024309,7]
[364610537,1749160239926,-685.942006,0.00024309,7]
[364610538,1749160239935,-685.942006,0.00024309,7]
[364610539,1749160239945,-685.942006,0.00024309,7]
[364610540,1749160239954,-685.942006,0.00024309,7]
[364610541,1749160239965,-685.942006,0.00024309,7]
[364610542,1749160239974,-685.942006,0.00024309,7]
[364610543,1749160239984,-685.942006,0.00024309,7]
[364610544,1749160240002,-685.942006,0.00024309,7]
[364610545,1749160240018,-685.942006,0.00024309,7]
[364610546,1749160240027,-685.942006,0.00024309,7]
[364610547,1749160240037,-685.942006,0.00024309,7]
[364610548,1749160240046,-685.942006,0.00024309,7]
[364610549,1749160240055,-685.942006,0.00024309,7]
[364610550,1749160240064,-685.942002,0.00024309,7]
[364610551,1749160240073,-401.210306,0.00024309,7]
[364610552,1749160240083,-401.210306,0.00024309,7]
[364610553,1749160240092,-401.210306,0.00024309,7]
[364610554,1749160240101,-401.210306,0.00024309,7]
[364610555,1749160240111,-401.210306,0.00024309,7]
[364610556,1749160240121,-401.210306,0.00024309,7]
[364610557,1749160240132,-401.210306,0.00024309,7]
[364610558,1749160240146,-401.210306,0.00024309,7]
[364610559,1749160240157,-401.210306,0.00024309,7]
[364610560,1749160240167,-401.210306,0.00024309,7]
[364610561,1749160240177,-401.210306,0.00024309,7]
[364610562,1749160240186,-401.210306,0.00024309,7]
[364610563,1749160240197,-401.210306,0.00024309,7]
[364610565,1749160240207,-401.210306,0.00024309,7]
[364610567,1749160240217,-401.210306,0.00024309,7]
[364610568,1749160240226,-401.210306,0.00024309,7]
[364610569,1749160240236,-401.210306,0.00024309,7]
[364610570,1749160240246,-401.210306,0.00024309,7]
[364610571,1749160240256,-401.210306,0.00024309,7]
[364610572,1749160240265,-401.210314,0.00024309,7]
[364610575,1749160240275,-151.0,0.00024309,7]
[364610576,1749160240388,-151.0,0.00024309,7]
[364610577,1749160240397,-239.63819,0.00024309,7]
[364610578,1749160240407,-229.48950782,0.0002431,10]
[364610579,1749160240416,-12675.11581177,0.0002431,10]
[364610580,1749160240426,-315.01552021,0.0002431,10]
[364610581,1749160240435,-500.0,0.00024313,2]
[364610582,1749160240444,-500.0,0.00024313,2]
[364610583,1749160240454,-357.68994817,0.00024313,2]
[364610584,1749160240463,-500.0,0.00024313,2]
[364610585,1749160240472,-510.49767918,0.00024313,2]
[364610586,1749160240482,-309.5591309,0.00024313,2]
[364610587,1749160240492,-404.78485811,0.00024313,2]
[364610588,1749160240501,-500.0,0.00024313,2]
[364610589,1749160240511,-598.84238107,0.00024313,2]
[364610590,1749160240520,-500.0,0.00024313,2]
[364610591,1749160240530,-500.0,0.00024313,2]
[364610592,1749160240540,-336.39999999,0.00024313,2]
[364610593,1749160240549,-500.0,0.00024313,2]
[364610595,1749160240559,-315.01552021,0.00024314,30]
[364610597,1749160240568,-769758.39525448,0.00024314,20]
[364610599,1749160240577,-357470.54228277,0.00024314,20]
[364610601,1749160240587,-445415.35406005,0.00024314,20]
[364610603,1749160240596,-382.88458619,0.00024314,2]
[364610605,1749160240606,-73487.4294299,0.00024314,20]
[364610607,1749160240619,-242535.87354745,0.00024314,20]
[364610609,1749160240628,-239681.86128756,0.00024314,20]
[364610611,1749160240639,-512855.35033235,0.00024314,20]
[364610613,1749160240648,-531805.49802295,0.00024314,20]
[364610615,1749160240658,-256388.17174605,0.00024314,20]
[364610617,1749160240668,-2221941.32493018,0.00024314,20]
[364610741,1749160241784,-139.85861664,0.0002172,2]
[364610743,1749160241797,-3433.80000001,0.0002172,2]
[364610967,1749160243769,-12426.34138335,0.0002172,2]
[364610969,1749160243779,-16000.0,0.00022268,2]
[364610971,1749160243790,-16000.0,0.00022816,2]
[364610973,1749160243800,-210.73,0.00024304,10]
[364610975,1749160243810,-1915476.70504721,0.00024314,20]
[364610977,1749160243822,-790.0325986,0.00024314,20]
[364610980,1749160243834,-9445.37155619,0.00024314,20]
[364612273,1749160604968,171.768714,0.00013699,2]
[364612278,1749161133421,-171.768714,0.00020187,2]
[364612279,1749161133443,-229.96065882,0.00020754,2]
[364612280,1749161133471,-1200.0,0.00020854,2]
[364612281,1749161133493,-300.0,0.00020854,2]
[364612282,1749161133517,-300.0,0.00020854,2]
[364612283,1749161133540,-300.0,0.00020854,2]
[364612284,1749161133563,-6244.04124513,0.00020855,2]
[364612285,1749161230080,-300.0,0.00020854,2]
[364612286,1749161230108,-299.0,0.00020854,2]
[364612287,1749161230132,-6509.18489466,0.00020855,2]
[364612288,1749161272223,839.63,0.00024658,120]
[364612348,1749161432256,-757.0,0.00020854,2]
[364612351,1749161432266,-5703.42543761,0.00020855,2]
[364612352,1749161432276,-622.893344,0.00020855,2]
[364612357,1749161432407,-164.90024098,0.00021531,2]
[364612360,1749161432424,-212.94059491,0.00021728,2]
[364612362,1749161432435,-423.7637613,0.00021728,2]
[364612364,1749161432445,-440.0,0.00021729,2]
[364612365,1749161432454,-440.0,0.00021729,2]
[364612366,1749161432464,-709.17,0.00021729,2]
[364612367,1749161432474,-440.0,0.00021729,2]
[364612368,1749161432484,-440.0,0.00021729,2]
[364612369,1749161432493,-440.0,0.00021729,2]
[364612370,1749161432503,-649.99,0.00021732,2]
[364612371,1749161432512,-440.0,0.00021732,2]
[364612372,1749161432522,-440.0,0.00021732,2]
[364612373,1749161432531,-440.0,0.00021733,2]
[364612374,1749161432541,-229.48950782,0.00021783,2]
[364612375,1749161432550,-430.0,0.00021789,2]
[364612376,1749161432560,-283.28858271,0.00021789,2]
[364612377,1749161432570,-440.0,0.00021789,2]
[364612378,1749161432579,-430.0,0.00021789,2]
[364612379,1749161432589,-430.0,0.00021789,2]
[364612380,1749161432598,-323.2490209,0.000219,6]
[364612381,1749161432608,-185.48647241,0.00021903,2]
[364612382,1749161432617,-440.0,0.00021998,2]
[364612383,1749161432626,-193.818,0.00021999,2]
[364612384,1749161432635,-440.0,0.00021999,2]
[364612385,1749161432645,-260.48411615,0.00021999,2]
[364612386,1749161432655,-440.0,0.00021999,2]
[364612387,1749161432664,-440.0,0.00021999,2]
[364612388,1749161432673,-440.0,0.00021999,2]
[364612389,1749161432683,-349.68371732,0.00021999,2]
[364612390,1749161432693,-493.91,0.00021999,2]
[364612391,1749161432704,-440.0,0.00021999,2]
[364612392,1749161432714,-165.01531053,0.00021999,2]
[364612393,1749161432726,-181.96297623,0.00021999,2]
[364612394,1749161432736,-440.0,0.00021999,2]
[364612395,1749161432745,-440.0,0.00021999,2]
[364612396,1749161432754,-410.0,0.00021999,2]
[364612397,1749161432764,-278.76307953,0.00021999,2]
[364612398,1749161432776,-161.23692047,0.00021999,2]
[364612399,1749161432785,-440.0,0.00021999,2]
[364612400,1749161432794,-440.0,0.00021999,2]
[364612401,1749161432803,-440.0,0.00021999,2]
[364612402,1749161432813,-440.0,0.00021999,2]
[364612403,1749161432823,-380.0,0.00021999,2]
[364612404,1749161432832,-298.62178316,0.00021999,2]
[364612405,1749161432843,-141.37821684,0.00021999,2]
[364612406,1749161432853,-537.2966483,0.00021999,2]
[364612407,1749161432863,-440.0,0.00021999,2]
[364612408,1749161432872,-18.82513486,0.00021999,2]
[364612443,1749161438048,-229.96065882,0.00020756,2]
[364612445,1749161438058,-450.55440323,0.00021999,2]
[364612447,1749161438067,-440.0,0.00021999,2]
[364612449,1749161438076,-440.0,0.00021999,2]
[364612451,1749161438085,-440.0,0.00021999,2]
[364612453,1749161438095,-440.0,0.00021999,2]
[364612455,1749161438104,-440.0,0.00021999,2]
[364612457,1749161438115,-390.0,0.00021999,2]
[364612459,1749161438124,-440.0,0.00021999,2]
[364612461,1749161438134,-440.0,0.00021999,2]
[364612463,1749161438143,-644.91,0.00021999,2]
[364612465,1749161438152,-12039.79926667,0.00022,5]
[364612468,1749161438164,-393.13693282,0.00022,5]
[364612470,1749161438175,-1245.99360174,0.00022,5]
[364612472,1749161438186,-385.40239425,0.00022,5]
[364612475,1749161438198,-2314.72670588,0.00022,5]
[364612478,1749161438210,-336.26733391,0.00022,5]
[364612481,1749161438222,-1567.3008456,0.00022,5]
[364612483,1749161438233,-18090.41953113,0.00022,5]
[364612485,1749161438243,-440.0,0.00022003,2]
[364612487,1749161438252,-440.0,0.00022003,2]
[364612489,1749161438261,-709.17,0.00022003,2]
[364612491,1749161438271,-440.0,0.00022003,2]
[364612493,1749161438281,-440.0,0.00022003,2]
[364612495,1749161438290,-440.0,0.00022003,2]
[364612497,1749161438299,-323.24902073,0.00022003,6]
[364612499,1749161438308,-649.99,0.00022006,2]
[364612501,1749161438317,-440.0,0.00022006,2]
[364612503,1749161438326,-440.0,0.00022006,2]
[364612505,1749161438335,-440.0,0.00022007,2]
[364612507,1749161438345,-323.24902073,0.00022107,6]
[364612509,1749161438355,-323.24902073,0.0002221,6]
[364612511,1749161438363,-440.0,0.00022272,2]
[364612513,1749161438372,-440.0,0.00022273,2]
[364612515,1749161438382,-440.0,0.00022273,2]
[364612517,1749161438392,-440.0,0.00022273,2]
[364612519,1749161438403,-440.0,0.00022273,2]
[364612521,1749161438414,-493.91,0.00022273,2]
[364612523,1749161438423,-440.0,0.00022273,2]
[364612525,1749161438433,-440.0,0.00022273,2]
[364612527,1749161438444,-440.0,0.00022273,2]
[364612529,1749161438453,-440.0,0.00022273,2]
[364612531,1749161438464,-440.0,0.00022273,2]
[364612533,1749161438474,-440.0,0.00022273,2]
[364612535,1749161438484,-440.0,0.00022273,2]
[364612537,1749161438494,-440.0,0.00022273,2]
[364612539,1749161438506,-440.0,0.00022273,2]
[364612541,1749161438515,-440.0,0.00022273,2]
[364612543,1749161438524,-440.0,0.00022273,2]
[364612545,1749161438534,-440.0,0.00022273,2]
[364612547,1749161438543,-440.0,0.00022273,2]
[364612548,1749161438552,-440.0,0.00022273,2]
[364612549,1749161438562,-440.0,0.00022273,2]
[364612550,1749161438571,-440.0,0.00022273,2]
[364612551,1749161438580,-644.91,0.00022273,2]
[364612552,1749161438589,-440.0,0.00022277,2]
[364612553,1749161438597,-440.0,0.00022277,2]
[364612554,1749161438607,-709.17,0.00022277,2]
[364612555,1749161438615,-440.0,0.00022277,2]
[364612556,1749161438625,-440.0,0.00022277,2]
[364612557,1749161438634,-351.12705099,0.00022277,2]
[364612558,1749161438643,-649.99,0.0002228,2]
[364612559,1749161438652,-440.0,0.0002228,2]
[364612560,1749161438661,-440.0,0.0002228,2]
[364612561,1749161438670,-440.0,0.00022281,2]
[364612562,1749161438679,-323.24902073,0.00022314,7]
[364612563,1749161438688,-323.24902073,0.00022417,7]
[364612564,1749161438697,-323.24902073,0.00022521,7]
[364612565,1749161438708,-440.0,0.00022546,2]
[364612566,1749161438717,-217.9476667,0.00022547,2]
[364612567,1749161438727,-440.0,0.00022547,2]
[364612568,1749161438737,-440.0,0.00022547,2]
[364612569,1749161438747,-440.0,0.00022547,2]
[364612570,1749161438757,-493.91,0.00022547,2]
[364612571,1749161438766,-440.0,0.00022547,2]
[364612572,1749161438776,-440.0,0.00022547,2]
[364612573,1749161438786,-440.0,0.00022547,2]
[364612575,1749161438796,-440.0,0.00022547,2]
[364612577,1749161438805,-440.0,0.00022547,2]
[364612579,1749161438814,-440.0,0.00022547,2]
[364612581,1749161438823,-440.0,0.00022547,2]
[364612583,1749161438833,-440.0,0.00022547,2]
[364612585,1749161438843,-440.0,0.00022547,2]
[364612587,1749161438852,-533.75,0.00022547,2]
[364612589,1749161438861,-440.0,0.00022547,2]
[364612591,1749161438871,-440.0,0.00022547,2]
[364612593,1749161438880,-440.0,0.00022547,2]
[364612595,1749161438890,-440.0,0.00022547,2]
[364612597,1749161438899,-440.0,0.00022547,2]
[364612599,1749161438908,-644.91,0.00022547,2]
[364612601,1749161438917,-440.0,0.00022551,2]
[364612603,1749161438927,-440.0,0.00022551,2]
[364612605,1749161438936,-709.17,0.00022551,2]
[364612607,1749161438946,-440.0,0.00022551,2]
[364612609,1749161438958,-440.0,0.00022551,2]
[364612611,1749161438967,-649.99,0.00022554,2]
[364612614,1749161438977,-440.0,0.00022554,2]
[364612616,1749161438986,-440.0,0.00022554,2]
[364612618,1749161438995,-440.0,0.00022555,2]
[364612619,1749161439004,-323.24902073,0.00022624,7]
[364612620,1749161439013,-420.0,0.00022688,2]
[364612621,1749161439023,-323.24902073,0.00022728,7]
[364612622,1749161439032,-440.0,0.0002282,2]
[364612623,1749161439041,-440.0,0.00022821,2]
[364612624,1749161439050,-440.0,0.00022821,2]
[364612625,1749161439065,-440.0,0.00022821,2]
[364612626,1749161439079,-493.91,0.00022821,2]
[364612627,1749161439088,-440.0,0.00022821,2]
[364612628,1749161439098,-526.95,0.00022821,2]
[364612629,1749161439107,-440.0,0.00022821,2]
[364612630,1749161439117,-440.0,0.00022821,2]
[364612631,1749161439126,-440.0,0.00022821,2]
[364612632,1749161439136,-440.0,0.00022821,2]
[364612633,1749161439146,-440.0,0.00022821,2]
[364612634,1749161439156,-440.0,0.00022821,2]
[364612635,1749161439167,-440.0,0.00022821,2]
[364612636,1749161439176,-440.0,0.00022821,2]
[364612637,1749161439186,-440.0,0.00022821,2]
[364612638,1749161439196,-527.8,0.00022821,2]
[364612639,1749161439208,-440.0,0.00022821,2]
[364612640,1749161439218,-644.91,0.00022821,2]
[364612641,1749161439227,-440.0,0.00022825,2]
[364612642,1749161439237,-440.0,0.00022825,2]
[364612643,1749161439247,-709.17,0.00022825,2]
[364612644,1749161439256,-440.0,0.00022825,2]
[364612645,1749161439266,-254.24,0.00022825,2]
[364612646,1749161439275,-649.99,0.00022828,2]
[364612647,1749161439285,-440.0,0.00022828,2]
[364612648,1749161439295,-440.0,0.00022828,2]
[364612649,1749161439304,-440.0,0.00022829,2]
[364612650,1749161439314,-323.24902073,0.00022831,8]
[364612652,1749161439323,-323.24902073,0.00022934,8]
[364612654,1749161439333,-323.24902073,0.00023038,8]
[364612655,1749161439343,-185.4864724,0.00023059,2]
[364612656,1749161439352,-151.0,0.00023077,2]
[364612657,1749161439363,-207.4,0.00023077,2]
[364612658,1749161439372,-440.0,0.00023094,2]
[364612659,1749161439382,-440.0,0.00023095,2]
[364612660,1749161439395,-440.0,0.00023095,2]
[364612661,1749161439406,-440.0,0.00023095,2]
[364612662,1749161439415,-493.91,0.00023095,2]
[364612663,1749161439426,-440.0,0.00023095,2]
[364612664,1749161439436,-440.0,0.00023095,2]
[364612666,1749161439446,-416.5,0.00023095,2]
[364612667,1749161439455,-440.0,0.00023095,2]
[364612670,1749161439466,-156.25,0.00023095,2]
[364612673,1749161439477,-440.0,0.00023095,2]
[364612675,1749161439488,-440.0,0.00023095,2]
[364612676,1749161439499,-440.0,0.00023095,2]
[364612677,1749161439508,-440.0,0.00023095,2]
[364612679,1749161439519,-440.0,0.00023095,2]
[364612681,1749161439529,-440.0,0.00023095,2]
[364612682,1749161439539,-644.91,0.00023095,2]
[364612683,1749161439548,-440.0,0.00023099,2]
[364612684,1749161439558,-440.0,0.00023099,2]
[364612685,1749161439568,-709.17,0.00023099,2]
[364612686,1749161439578,-440.0,0.00023099,2]
[364612687,1749161439587,-649.99,0.00023102,2]
[364612688,1749161439597,-440.0,0.00023102,2]
[364612689,1749161439607,-440.0,0.00023102,2]
[364612690,1749161439616,-440.0,0.00023103,2]
[364612691,1749161439635,-323.24902073,0.00023141,8]
[364612692,1749161439645,-323.24902073,0.00023245,8]
[364612693,1749161439654,-323.24902073,0.00023348,9]
[364612694,1749161439664,-500.0,0.00023368,2]
[364612695,1749161439674,-160.0,0.00023368,2]
[364612696,1749161439683,-440.0,0.00023368,2]
[364612697,1749161439693,-493.91,0.00023369,2]
[364612698,1749161439702,-440.0,0.00023369,2]
[364612699,1749161439714,-288.15,0.00023369,2]
[364612700,1749161439724,-440.0,0.00023369,2]
[364612701,1749161439733,-154.68,0.00023369,2]
[364612702,1749161439743,-440.0,0.00023369,2]
[364612703,1749161439752,-239.95,0.00023369,2]
[364612704,1749161439762,-440.0,0.00023369,2]
[364612705,1749161439772,-440.0,0.00023369,2]
[364612706,1749161439781,-440.0,0.00023369,2]
[364612707,1749161439790,-644.91,0.00023369,2]
[364612708,1749161439800,-440.0,0.00023373,2]
[364612709,1749161439810,-440.0,0.00023373,2]
[364612710,1749161439819,-709.17,0.00023373,2]
[364612711,1749161439832,-304.8,0.00023373,2]
[364612712,1749161439845,-440.0,0.00023376,2]
[364612713,1749161439854,-649.99,0.00023376,2]
[364612714,1749161439863,-440.0,0.00023376,2]
[364612715,1749161439873,-440.0,0.00023376,2]
[364612716,1749161439884,-323.24902073,0.00023452,9]
[364612717,1749161439893,-572.6068135,0.00023479,2]
[364612718,1749161439903,-323.24902073,0.00023555,9]
[364612719,1749161439913,-440.0,0.00023642,2]
[364612720,1749161439922,-493.91,0.00023643,2]
[364612721,1749161439931,-440.0,0.00023643,2]
[364612722,1749161439940,-440.0,0.00023643,2]
[364612723,1749161439950,-497.44,0.00023643,2]
[364612724,1749161439959,-252.95,0.00023643,2]
[364612725,1749161439969,-440.0,0.00023643,2]